fUSD/lending_fUSD_20240909
["ID","MTS","AMOUNT","RATE_DAILY","PERIOD"]
[337609267,1725891088664,-1949.23,0.00014794,2]
[337609268,1725891088672,-1316.25,0.00014794,2]
[337609269,1725891088682,-2645.26,0.00014794,2]
[337609270,1725891088690,-500.0,0.00014794,2]
[337609271,1725891088700,-1316.25,0.00014794,2]
[337609272,1725891088709,-1949.23,0.00014794,2]
[337609273,1725891088718,-2645.26,0.00014794,2]
[337609274,1725891088727,-500.0,0.00014794,2]
[337609275,1725891088736,-1316.25,0.00014794,2]
[337609276,1725891088746,-1949.23,0.00014794,2]
[337609277,1725891088754,-500.0,0.00014794,2]
[337609278,1725891088763,-2645.26,0.00014794,2]
[337609279,1725891088772,-1949.23,0.00014794,2]
[337609280,1725891088781,-500.0,0.00014794,2]
[337609281,1725891088790,-1316.25,0.00014794,2]
[337609282,1725891088799,-500.0,0.00014794,2]
[337609283,1725891088808,-2645.26,0.00014794,2]
[337609284,1725891088817,-500.0,0.00014794,2]
[337609285,1725891088827,-1949.23,0.00014794,2]
[337609286,1725891088840,-500.0,0.00014794,2]
[337609287,1725891088849,-1316.25,0.00014794,2]
[337609288,1725891088858,-500.0,0.00014794,2]
[337609289,1725891088867,-2645.26,0.00014794,2]
[337609290,1725891088877,-500.0,0.00014794,2]
[337609291,1725891088887,-1949.23,0.00014794,2]
[337609292,1725891088896,-500.0,0.00014794,2]
[337609293,1725891088906,-1138.65,0.00014794,2]
[337609294,1725891088916,-1316.25,0.00014794,2]
[337609295,1725891088925,-500.0,0.00014794,2]
[337609296,1725891088935,-500.0,0.00014794,2]
[337609297,1725891088944,-2645.26,0.00014794,2]
[337609298,1725891088953,-802.63,0.00014794,2]
[337609299,1725891088962,-500.0,0.00014794,2]
[337609300,1725891088971,-1949.23,0.00014794,2]
[337609301,1725891088981,-500.0,0.00014794,2]
[337609302,1725891088990,-1138.65,0.00014794,2]
[337609303,1725891088999,-3265.85,0.00014794,2]
[337609304,1725891089008,-1316.25,0.00014794,2]
[337609305,1725891089017,-500.0,0.00014794,2]
[337609306,1725891089027,-500.0,0.00014794,2]
[337609307,1725891089036,-2645.26,0.00014794,2]
[337609308,1725891089045,-802.63,0.00014794,2]
[337609309,1725891089054,-500.0,0.00014794,2]
[337609310,1725891089063,-1949.23,0.00014794,2]
[337609311,1725891089073,-1138.65,0.00014794,2]
[337609312,1725891089087,-1316.25,0.00014794,2]
[337609313,1725891089096,-3265.85,0.00014794,2]
[337609314,1725891089106,-500.0,0.00014794,2]
[337609315,1725891089114,-2645.26,0.00014794,2]
[337609316,1725891089125,-802.63,0.00014794,2]
[337609317,1725891089134,-500.0,0.00014794,2]
[337609318,1725891089143,-1061.69,0.00014794,2]
[337609319,1725891089152,-1949.23,0.00014794,2]
[337609320,1725891089161,-500.0,0.00014794,2]
[337609321,1725891089170,-500.0,0.00014794,2]
[337609322,1725891089179,-1138.65,0.00014794,2]
[337609323,1725891089188,-3265.85,0.00014794,2]
[337609324,1725891089197,-1316.25,0.00014794,2]
[337609325,1725891089206,-500.0,0.00014794,2]
[337609326,1725891089216,-2645.26,0.00014794,2]
[337609327,1725891089225,-1061.69,0.00014794,2]
[337609328,1725891089234,-500.0,0.00014794,2]
[337609329,1725891089244,-1949.23,0.00014794,2]
[337609330,1725891089255,-802.63,0.00014794,2]
[337609331,1725891089265,-500.0,0.00014794,2]
[337609332,1725891089274,-3265.85,0.00014794,2]
[337609333,1725891089284,-429.15534415,0.00014794,2]
[337609334,1725891089802,-70.84465585,0.00014794,2]
[337609335,1725891089812,-2325.8961175,0.00014794,2]
[337609336,1725891089824,-319.3638825,0.00014794,2]
[337609337,1725891089836,-71.86014817,0.00014794,2]
[337609338,1725891090681,-500.0,0.00014278,2]
[337609339,1725891090690,-196.16827053,0.00014793,2]
[337609340,1725891090700,-11.93172947,0.00014794,2]
[337609341,1725891090712,-1232.49089362,0.00014794,2]
[337609342,1725891090721,-164.61561825,0.00014794,2]
[337609343,1725891090733,-638.01438175,0.00014794,2]
[337609344,1725891090743,-1949.23,0.00014794,2]
[337609345,1725891090752,-500.0,0.00014794,2]
[337609346,1725891090762,-500.0,0.00014794,2]
[337609347,1725891090772,-61.70814375,0.00014794,2]
[337609348,1725891090800,-1076.94185625,0.00014794,2]
[337609349,1725891090810,-1061.69,0.00014794,2]
[337609350,1725891090819,-927.16656988,0.00014794,2]
[337609351,1725891090975,-1294.63954852,0.00014794,2]
[337609352,1725891090988,-423.4538816,0.00014794,2]
[337609353,1725891090998,-1949.23,0.00014794,2]
[337609354,1725891091008,-287.77987841,0.00014794,2]
[337609355,1725891091022,-212.22012159,0.00014794,2]
[337609356,1725891091032,-802.63,0.00014794,2]
[337609357,1725891091042,-1138.65,0.00014794,2]
[337609358,1725891091052,-705.94586385,0.00014794,2]
[337609359,1725891101276,1000.0,0.00012205,2]
[337609361,1725891168853,500.0,0.00010958,2]
[337609362,1725891189735,500.0,0.00010958,2]
[337609363,1725891190915,500.0,0.00010958,2]
[337609364,1725891294462,604.75,0.00011739,2]
[337609365,1725891327962,153.94,0.00010959,2]
[337609366,1725891394405,529.03,0.00013,2]
[337609367,1725891485732,250.0,0.00012205,2]
[337609368,1725891499837,249.34336927,0.00025,60]
[337609369,1725891558203,750.0,0.00011,2]
[337609370,1725891559300,800.0,0.00013,2]
[337609372,1725891701814,476.13,0.00013,2]
[337609373,1725891863902,175.92,0.00010959,2]
[337609374,1725891886251,4782.89139855,0.00012695,2]
[337609375,1725891908752,17082.08860145,0.00013,2]
[337609376,1725891908782,25000.0,0.00013,2]
[337609377,1725891908815,25000.0,0.00013,2]
[337609378,1725891908846,25000.0,0.00013,2]
[337609379,1725891908874,25000.0,0.00013,2]
[337609380,1725891908906,25000.0,0.00013,2]
[337609540,1725892042134,20000.0,0.000125,2]
[337609565,1725892092075,9163.21,0.000125,2]
[337609569,1725892109518,582.27,0.00010849,2]
[337609602,1725892232119,-426.89,0.00012658,2]
[337609603,1725892232128,-184.0,0.00012739,2]
[337609604,1725892232137,-1057.03204951,0.0001274,2]
[337609605,1725892232147,-1039.19615382,0.0001274,2]
[337609606,1725892232156,-300.0,0.00012878,2]
[337609607,1725892232165,-1638.94691594,0.00012879,2]
[337609608,1725892232174,-500.0,0.00012879,2]
[337609609,1725892232183,-413.96560361,0.00012879,2]
[337609610,1725892232193,-169.0686501,0.00012879,2]
[337609611,1725892232202,-500.0,0.00012879,2]
[337609612,1725892232211,-411.77139312,0.00012879,2]
[337609613,1725892232220,-150.0,0.00012879,2]
[337609614,1725892232229,-96368.50425308,0.0001288,2]
[337609615,1725892232240,-290.16336359,0.0001288,2]
[337609616,1725892232251,-432.000004,0.0001288,2]
[337609617,1725892232263,-806.59811442,0.0001288,2]
[337609618,1725892232274,-889.15149544,0.0001288,2]
[337609619,1725892232285,-1601.38575,0.0001288,2]
[337609620,1725892232296,-299.6900001,0.0001288,2]
[337609621,1725892232311,-1353.12063743,0.0001288,2]
[337609622,1725892232322,-2787.35794757,0.0001288,2]
[337609623,1725892232332,-2000.0,0.0001288,2]
[337609624,1725892232343,-250.0,0.0001288,2]
[337609626,1725892232354,-562.4996314,0.0001288,2]
[337609628,1725892232365,-944.30449093,0.0001288,2]
[337609629,1725892232376,-663.88578994,0.0001288,2]
[337609630,1725892232394,-382.31751455,0.0001288,2]
[337609631,1725892232405,-7517.22981859,0.0001288,2]
[337609632,1725892232416,-846.08694448,0.0001288,2]
[337609633,1725892232427,-508.11036067,0.0001288,2]
[337609634,1725892232446,-15594.2590839,0.0001288,2]
[337609635,1725892232456,-389.84087267,0.0001288,2]
[337609636,1725892232467,-13177.92299829,0.0001288,2]
[337609637,1725892232478,-5649.28327191,0.0001288,2]
[337609638,1725892232488,-6708.88506348,0.0001288,2]
[337609639,1725892232499,-62641.76333925,0.0001288,2]
[337609640,1725892232527,-4603.03995499,0.0001288,2]
[337609641,1725892232538,-467.71640129,0.0001288,2]
[337609642,1725892232549,-3106.15268631,0.0001288,2]
[337609643,1725892232560,-401.44091038,0.0001288,2]
[337609660,1725892238236,-50702.62269589,0.0001288,2]
[337609661,1725892238247,-63491.59336379,0.0001288,2]
[337609662,1725892238258,-6900.74336425,0.0001288,2]
[337609663,1725892238301,-18577.93804003,0.0001288,2]
[337609665,1725892238348,-7650.98546372,0.0001288,2]
[337609667,1725892238358,-500.0,0.00012973,2]
[337609668,1725892238368,-107633.3065872,0.0001299,2]
[337609670,1725892238377,-150.06,0.0001299,2]
[337609672,1725892238386,-150.06,0.0001299,2]
[337609674,1725892238395,-150.06,0.0001299,2]
[337609676,1725892238405,-150.06,0.0001299,2]
[337609678,1725892238414,-150.06,0.0001299,2]
[337609680,1725892238423,-150.06,0.0001299,2]
[337609682,1725892238432,-150.06,0.0001299,2]
[337609684,1725892238442,-150.06,0.0001299,2]
[337609686,1725892238451,-885.9,0.0001299,2]
[337609688,1725892238461,-169.56959919,0.00012999,2]
[337609690,1725892238471,-3280297.59756534,0.00013,2]
[337609691,1725892238480,-428.52,0.00013,2]
[337609693,1725892238490,-117097.73403406,0.00013,2]
[337609695,1725892238499,-582.27,0.00013113,2]
[337609697,1725892238509,-250.0,0.00013123,2]
[337609699,1725892238521,-500.0,0.00013189,2]
[337609701,1725892238534,-250.0,0.00013205,2]
[337609703,1725892238544,-164.06,0.00013223,2]
[337609705,1725892238553,-167.34,0.00013265,2]
[337609707,1725892238563,-200.0,0.00013275,2]
[337609709,1725892238572,-1736.617,0.00013528,2]
[337609711,1725892238581,-1921.0,0.00013528,2]
[337609713,1725892238591,-1119.0,0.00013528,2]
[337609715,1725892238600,-248.0,0.00013528,2]
[337609717,1725892238609,-3157.52,0.00013528,2]
[337609719,1725892238619,-805.0,0.00013528,2]
[337609721,1725892238628,-2524.88,0.00013528,2]
[337609723,1725892238638,-7460.256,0.00013528,2]
[337609724,1725892238647,-5859.0,0.00013528,2]
[337609726,1725892238657,-623.0,0.00013528,2]
[337609728,1725892238666,-1261.0,0.00013528,2]
[337609730,1725892238675,-447.0,0.00013528,2]
[337609732,1725892238685,-1547.0,0.00013528,2]
[337609734,1725892238694,-150.0,0.00013528,2]
[337609736,1725892238704,-230.057,0.00013528,2]
[337609738,1725892238713,-177.65,0.00013656,2]
[337609740,1725892238722,-500.0,0.00013698,2]
[337609742,1725892238731,-500.0,0.00013698,2]
[337609744,1725892238740,-301.6808368,0.00013698,2]
[337609746,1725892238750,-499.99,0.00013698,2]
[337609748,1725892238759,-606.64,0.00013699,2]
[337609750,1725892238774,-283.39,0.00013699,2]
[337609752,1725892238783,-179.2,0.00013699,2]
[337609754,1725892238792,-166.09,0.00013699,2]
[337609756,1725892238801,-200.0,0.00013699,2]
[337609757,1725892238811,-235.92,0.00013699,2]
[337609759,1725892238820,-1000.0,0.00013731,2]
[337609761,1725892238830,-150.06,0.0001379,2]
[337609763,1725892238840,-194017.959953,0.000138,2]
[337609765,1725892238849,-1000.0,0.000139,2]
[337609767,1725892238859,-718.0,0.000139,2]
[337609769,1725892238868,-255.0,0.00013987,2]
[337609771,1725892238878,-500.0,0.00014049,2]
[337609773,1725892238887,-500.0,0.00014058,2]
[337609775,1725892238897,-500.0,0.00014066,2]
[337609777,1725892238906,-500.0,0.00014075,2]
[337609779,1725892238915,-500.0,0.00014084,2]
[337609780,1725892238926,-500.0,0.00014093,2]
[337609782,1725892238937,-500.0,0.00014102,2]
[337609784,1725892238946,-500.0,0.0001411,2]
[337609785,1725892238956,-500.0,0.00014119,2]
[337609788,1725892238967,-420.0,0.00014125,2]
[337609790,1725892238978,-500.0,0.00014128,2]
[337609792,1725892238988,-500.0,0.00014137,2]
[337609794,1725892239000,-500.0,0.00014146,2]
[337609795,1725892239014,-500.0,0.00014154,2]
[337609797,1725892239023,-500.0,0.00014163,2]
[337609799,1725892239033,-500.0,0.00014172,2]
[337609801,1725892239043,-500.0,0.00014181,2]
[337609803,1725892239052,-500.0,0.0001419,2]
[337609805,1725892239061,-500.0,0.00014198,2]
[337609807,1725892239070,-500.0,0.00014207,2]
[337609809,1725892239079,-500.0,0.00014216,2]
[337609811,1725892239088,-500.0,0.00014225,2]
[337609813,1725892239097,-500.0,0.00014234,2]
[337609815,1725892239107,-500.0,0.00014242,2]
[337609817,1725892239116,-500.0,0.00014251,2]
[337609819,1725892239126,-500.0,0.0001426,2]
[337609821,1725892239136,-500.0,0.00014269,2]
[337609823,1725892239146,-290.478,0.00014454,2]
[337609825,1725892239155,-720.189,0.00014495,2]
[337609827,1725892239165,-1131.0666065,0.00014498,2]
[337609829,1725892239174,-1119.16753071,0.00014498,2]
[337609831,1725892239183,-222.7304,0.000145,2]
[337609833,1725892239193,-13739.9545,0.000145,2]
[337609835,1725892239202,-275.771715,0.00014521,2]
[337609837,1725892239211,-150.0,0.00014568,2]
[337609839,1725892239221,-150.0,0.00014574,2]
[337609841,1725892239230,-2125.9198,0.00014575,2]
[337609843,1725892239240,-150.06,0.0001459,2]
[337609845,1725892239249,-3000.0,0.00014598,2]
[337609847,1725892239258,-3000.0,0.00014598,2]
[337609849,1725892239270,-3000.0,0.00014598,2]
[337609851,1725892239279,-3000.0,0.00014598,2]
[337609853,1725892239288,-3000.0,0.00014598,2]
[337609855,1725892239297,-3000.0,0.00014598,2]
[337609857,1725892239306,-3000.0,0.00014598,2]
[337609859,1725892239315,-3000.0,0.00014598,2]
[337609861,1725892239325,-3000.0,0.00014598,2]
[337609863,1725892239335,-1978.55593764,0.00014598,2]
[337609865,1725892239344,-1001.59,0.000146,5]
[337609867,1725892239353,-417685.49,0.000146,2]
[337609869,1725892239363,-5800.0,0.00014641,2]
[337609871,1725892239372,-152.58,0.00014647,2]
[337609873,1725892239381,-5800.0,0.00014649,2]
[337609875,1725892239390,-249.6424,0.0001465,2]
[337609877,1725892239399,-5800.0,0.00014658,2]
[337609879,1725892239409,-5800.0,0.00014666,2]
[337609881,1725892239419,-5800.0,0.00014675,2]
[337609883,1725892239428,-1042.06,0.00014682,2]
[337609885,1725892239437,-1042.06,0.00014682,2]
[337609887,1725892239447,-1042.06,0.00014682,2]
[337609888,1725892239456,-1042.06,0.00014682,2]
[337609890,1725892239465,-1042.06,0.00014682,2]
[337609892,1725892239475,-1042.06,0.00014682,2]
[337609894,1725892239484,-1042.06,0.00014682,2]
[337609897,1725892239493,-1042.06,0.00014682,2]
[337609899,1725892239503,-1042.06,0.00014682,2]
[337609901,1725892239515,-1042.06,0.00014682,2]
[337609903,1725892239526,-1042.06,0.00014682,2]
[337609905,1725892239536,-1042.06,0.00014682,2]
[337609907,1725892239545,-1042.06,0.00014682,2]
[337609908,1725892239555,-1042.06,0.00014682,2]
[337609910,1725892239564,-1042.06,0.00014682,2]
[337609912,1725892239574,-1042.06,0.00014682,2]
[337609914,1725892239583,-1042.06,0.00014682,2]
[337609916,1725892239593,-1042.06,0.00014682,2]
[337609918,1725892239602,-1042.06,0.00014682,2]
[337609920,1725892239611,-1042.06,0.00014682,2]
[337609922,1725892239620,-1042.06,0.00014682,2]
[337609924,1725892239630,-1042.06,0.00014682,2]
[337609925,1725892239639,-1042.06,0.00014682,2]
[337609927,1725892239648,-1042.2946392,0.00014682,2]
[337609929,1725892239658,-35000.0,0.00014682,2]
[337609931,1725892239667,-8500.0,0.00014682,2]
[337609933,1725892239676,-5800.0,0.00014683,2]
[337609935,1725892239685,-35000.0,0.00014691,2]
[337609937,1725892239695,-500.0,0.00014691,2]
[337609939,1725892239704,-8500.0,0.00014691,2]
[337609941,1725892239714,-5800.0,0.00014691,2]
[337609943,1725892239723,-35000.0,0.000147,2]
[337609945,1725892239733,-500.0,0.000147,2]
[337609947,1725892239742,-8500.0,0.000147,2]
[337609949,1725892239751,-5800.0,0.000147,2]
[337609950,1725892239761,-600.0,0.000147,2]
[337609952,1725892239774,-150.0,0.000147,2]
[337609954,1725892239784,-150.0,0.00014714,2]
[337609956,1725892239793,-500.0,0.00014773,2]
[337609958,1725892239803,-150.06,0.00014783,2]
[337609960,1725892239813,-150.06,0.00014783,2]
[337609962,1725892239822,-150.01,0.00014793,2]
[337609964,1725892239832,-10420.47466558,0.00014793,2]
[337609966,1725892239842,-1102.0,0.00014794,2]
[337609968,1725892239851,-549978.83397401,0.00014794,2]
[337609970,1725892239861,-500.0,0.00014794,2]
[337609972,1725892239871,-1138.65,0.00014794,2]
[337609974,1725892239881,-500.0,0.00014794,2]
[337609976,1725892239890,-1138.65,0.00014794,2]
[337609978,1725892239900,-500.0,0.00014794,2]
[337609980,1725892239909,-1138.65,0.00014794,2]
[337609983,1725892239921,-500.0,0.00014794,2]
[337609985,1725892239933,-1138.65,0.00014794,2]
[337609987,1725892239943,-500.0,0.00014794,2]
[337609989,1725892239952,-1138.65,0.00014794,2]
[337609991,1725892239963,-500.0,0.00014794,2]
[337609993,1725892239972,-1138.65,0.00014794,2]
[337609996,1725892239981,-500.0,0.00014794,2]
[337609998,1725892239990,-1138.65,0.00014794,2]
[337610000,1725892240001,-500.0,0.00014794,2]
[337610002,1725892240011,-1138.65,0.00014794,2]
[337610004,1725892240023,-293.17501899,0.00014794,2]
[337610006,1725892240033,-1138.65,0.00014794,2]
[337610008,1725892240043,-1138.65,0.00014794,2]
[337610010,1725892240052,-1138.65,0.00014794,2]
[337610012,1725892240062,-1138.65,0.00014794,2]
[337610014,1725892240071,-1138.65,0.00014794,2]
[337610016,1725892240080,-1138.65,0.00014794,2]
[337610018,1725892240090,-1138.65,0.00014794,2]
[337610020,1725892240099,-1138.65,0.00014794,2]
[337610022,1725892240109,-1138.65,0.00014794,2]
[337610024,1725892240118,-1138.78548586,0.00014794,2]
[337610025,1725892240127,-151.0,0.00014794,2]
[337610027,1725892240137,-151.0,0.00014794,2]
[337610029,1725892240146,-151.0,0.00014794,2]
[337610031,1725892240155,-151.0,0.00014794,2]
[337610033,1725892240165,-151.0,0.00014794,2]
[337610035,1725892240174,-289.269755,0.00014794,2]
[337610037,1725892240183,-151.0,0.00014794,2]
[337610039,1725892240193,-151.0,0.00014794,2]
[337610041,1725892240203,-151.0,0.00014794,2]
[337610043,1725892240212,-151.0,0.00014794,2]
[337610045,1725892240222,-151.0,0.00014794,2]
[337610047,1725892240231,-151.0,0.00014794,2]
[337610049,1725892240241,-151.0,0.00014794,2]
[337610051,1725892240251,-151.0,0.00014794,2]
[337610053,1725892240260,-151.0,0.00014794,2]
[337610055,1725892240275,-180.413193,0.00014794,2]
[337610057,1725892240291,-1831.65,0.00014794,2]
[337610059,1725892240300,-1831.65,0.00014794,2]
[337610061,1725892240309,-1831.65,0.00014794,2]
[337610063,1725892240318,-1831.65,0.00014794,2]
[337610065,1725892240328,-1831.65,0.00014794,2]
[337610067,1725892240337,-1831.65,0.00014794,2]
[337610069,1725892240346,-1831.65,0.00014794,2]
[337610070,1725892240355,-1831.65,0.00014794,2]
[337610072,1725892240364,-1831.65,0.00014794,2]
[337610074,1725892240374,-1831.65,0.00014794,2]
[337610076,1725892240383,-1831.65,0.00014794,2]
[337610078,1725892240392,-1831.65,0.00014794,2]
[337610080,1725892240401,-1831.65,0.00014794,2]
[337610082,1725892240411,-1831.65,0.00014794,2]
[337610084,1725892240419,-1831.65,0.00014794,2]
[337610086,1725892240428,-1831.65,0.00014794,2]
[337610088,1725892240437,-1831.65,0.00014794,2]
[337610090,1725892240447,-1831.65,0.00014794,2]
[337610092,1725892240456,-1831.65,0.00014794,2]
[337610094,1725892240465,-1831.65,0.00014794,2]
[337610095,1725892240474,-1831.65,0.00014794,2]
[337610097,1725892240483,-1831.65,0.00014794,2]
[337610099,1725892240492,-1831.65,0.00014794,2]
[337610101,1725892240501,-1831.78500122,0.00014794,2]
[337610104,1725892240509,-1981.74,0.00014794,2]
[337610134,1725892240756,-1981.74,0.00014794,2]
[337610139,1725892240826,-1981.74,0.00014794,2]
[337610141,1725892240836,-1981.74,0.00014794,2]
[337610142,1725892240845,-1981.74,0.00014794,2]
[337610144,1725892240855,-1981.74,0.00014794,2]
[337610146,1725892240864,-1981.74,0.00014794,2]
[337610148,1725892240873,-1981.74,0.00014794,2]
[337610150,1725892240882,-1981.74,0.00014794,2]
[337610152,1725892240892,-1981.74,0.00014794,2]
[337610154,1725892240901,-2343.04,0.00014794,2]
[337610156,1725892240911,-2343.04,0.00014794,2]
[337610158,1725892240921,-2343.04,0.00014794,2]
[337610160,1725892240934,-2343.04,0.00014794,2]
[337610162,1725892240945,-2343.04,0.00014794,2]
[337610164,1725892240955,-2343.04,0.00014794,2]
[337610166,1725892240964,-2343.04,0.00014794,2]
[337610168,1725892240974,-2343.04,0.00014794,2]
[337610169,1725892240984,-2343.04,0.00014794,2]
[337610171,1725892240993,-2343.04,0.00014794,2]
[337610173,1725892241003,-2343.04,0.00014794,2]
[337610175,1725892241014,-2343.04,0.00014794,2]
[337610177,1725892241028,-2343.04,0.00014794,2]
[337610179,1725892241037,-2343.04,0.00014794,2]
[337610181,1725892241047,-2343.04,0.00014794,2]
[337610183,1725892241056,-1981.74,0.00014794,2]
[337610185,1725892241066,-2343.04,0.00014794,2]
[337610187,1725892241075,-2343.04,0.00014794,2]
[337610189,1725892241084,-1981.74,0.00014794,2]
[337610191,1725892241094,-1981.74,0.00014794,2]
[337610193,1725892241103,-2343.04,0.00014794,2]
[337610195,1725892241112,-1981.74,0.00014794,2]
[337610197,1725892241122,-2343.04,0.00014794,2]
[337610199,1725892241131,-1981.74,0.00014794,2]
[337610201,1725892241140,-2343.04,0.00014794,2]
[337610203,1725892241150,-2343.04,0.00014794,2]
[337610205,1725892241160,-1981.74,0.00014794,2]
[337610207,1725892241169,-2343.04,0.00014794,2]
[337610209,1725892241179,-1981.74,0.00014794,2]
[337610211,1725892241189,-2343.04,0.00014794,2]
[337610213,1725892241198,-1981.74,0.00014794,2]
[337610215,1725892241207,-2343.18989158,0.00014794,2]
[337610217,1725892241217,-1981.74,0.00014794,2]
[337610218,1725892241226,-1981.74,0.00014794,2]
[337610220,1725892241235,-1981.74,0.00014794,2]
[337610222,1725892241244,-1981.74,0.00014794,2]
[337610224,1725892241253,-1981.74,0.00014794,2]
[337610226,1725892241263,-1981.86443524,0.00014794,2]
[337610228,1725892241277,-540.97,0.00014794,2]
[337610230,1725892241286,-540.97,0.00014794,2]
[337610232,1725892241295,-3440.14,0.00014794,2]
[337610234,1725892241304,-3440.14,0.00014794,2]
[337610236,1725892241313,-3440.14,0.00014794,2]
[337610238,1725892241323,-3440.14,0.00014794,2]
[337610240,1725892241332,-3440.14,0.00014794,2]
[337610242,1725892241342,-1350.54,0.00014794,2]
[337610244,1725892241351,-3440.14,0.00014794,2]
[337610246,1725892241360,-1350.54,0.00014794,2]
[337610248,1725892241369,-3440.14,0.00014794,2]
[337610250,1725892241379,-1350.54,0.00014794,2]
[337610251,1725892241387,-3440.14,0.00014794,2]
[337610253,1725892241396,-1350.54,0.00014794,2]
[337610255,1725892241405,-3440.14,0.00014794,2]
[337610257,1725892241414,-1350.54,0.00014794,2]
[337610259,1725892241423,-3440.14,0.00014794,2]
[337610261,1725892241432,-1350.54,0.00014794,2]
[337610263,1725892241441,-540.97,0.00014794,2]
[337610265,1725892241450,-3440.14,0.00014794,2]
[337610267,1725892241459,-1350.54,0.00014794,2]
[337610269,1725892241469,-540.97,0.00014794,2]
[337610271,1725892241478,-3440.14,0.00014794,2]
[337610273,1725892241487,-500.0,0.00014794,2]
[337610275,1725892241496,-1350.54,0.00014794,2]
[337610277,1725892241505,-3440.14,0.00014794,2]
[337610279,1725892241520,-540.97,0.00014794,2]
[337610280,1725892241529,-500.0,0.00014794,2]
[337610282,1725892241539,-1350.54,0.00014794,2]
[337610284,1725892241549,-540.97,0.00014794,2]
[337610286,1725892241559,-3440.14,0.00014794,2]
[337610288,1725892241569,-500.0,0.00014794,2]
[337610290,1725892241579,-1350.54,0.00014794,2]
[337610291,1725892241588,-540.97,0.00014794,2]
[337610293,1725892241598,-500.0,0.00014794,2]
[337610295,1725892241607,-3440.14,0.00014794,2]
[337610297,1725892241616,-540.97,0.00014794,2]
[337610299,1725892241626,-1350.54,0.00014794,2]
[337610301,1725892241635,-500.0,0.00014794,2]
[337610303,1725892241644,-540.97,0.00014794,2]
[337610305,1725892241654,-3440.14,0.00014794,2]
[337610307,1725892241664,-1350.54,0.00014794,2]
[337610309,1725892241673,-540.97,0.00014794,2]
[337610311,1725892241683,-3440.14,0.00014794,2]
[337610313,1725892241692,-1350.54,0.00014794,2]
[337610315,1725892241702,-500.0,0.00014794,2]
[337610317,1725892241711,-540.97,0.00014794,2]
[337610319,1725892241721,-1350.54,0.00014794,2]
[337610321,1725892241730,-500.0,0.00014794,2]
[337610323,1725892241740,-540.97,0.00014794,2]
[337610325,1725892241749,-1350.54,0.00014794,2]
[337610326,1725892241759,-500.0,0.00014794,2]
[337610328,1725892241774,-540.97,0.00014794,2]
[337610330,1725892241783,-1350.54,0.00014794,2]
[337610332,1725892241792,-500.0,0.00014794,2]
[337610334,1725892241801,-540.97,0.00014794,2]
[337610336,1725892241810,-1350.54,0.00014794,2]
[337610338,1725892241819,-500.0,0.00014794,2]
[337610340,1725892241827,-540.97,0.00014794,2]
[337610342,1725892241836,-500.0,0.00014794,2]
[337610343,1725892241846,-540.97,0.00014794,2]
[337610344,1725892241855,-1350.54,0.00014794,2]
[337610345,1725892241864,-500.0,0.00014794,2]
[337610346,1725892241873,-1350.54,0.00014794,2]
[337610347,1725892241883,-500.0,0.00014794,2]
[337610348,1725892241892,-1350.54,0.00014794,2]
[337610349,1725892241901,-540.97,0.00014794,2]
[337610350,1725892241911,-500.0,0.00014794,2]
[337610351,1725892241921,-3440.14,0.00014794,2]